[Event "Early-Titled-Tuesday-Blitz-October-10-2023"]
[Site "Chess.com"]
[Date "2023.10.10"]
[Round "8"]
[White "Alexander_Donchenko"]
[Black "GMBenjaminBok"]
[Result "1/2-1/2"]
[WhiteElo "2850"]
[BlackElo "3014"]
[TimeControl "180+1"]
[EndTime "9:28:31 PDT"]
[Termination "Game drawn by repetition"]

1. c4 {[%clk 0:03:00.9]} 1... c5 {[%clk 0:02:57.9]} 2. g3 {[%clk 0:03:01.3]}
2... g6 {[%clk 0:02:57.7]} 3. Bg2 {[%clk 0:03:02]} 3... Bg7 {[%clk 0:02:58.3]}
4. Nc3 {[%clk 0:03:02.7]} 4... Nc6 {[%clk 0:02:58.5]} 5. Nf3 {[%clk 0:03:03.3]}
5... d6 {[%clk 0:02:58.2]} 6. O-O {[%clk 0:03:03.2]} 6... Rb8 {[%clk 0:02:58.6]}
7. e3 {[%clk 0:03:00.3]} 7... Nf6 {[%clk 0:02:58.5]} 8. d4 {[%clk 0:03:00.4]}
8... O-O {[%clk 0:02:59.1]} 9. Re1 {[%clk 0:02:59.4]} 9... a6 {[%clk 0:02:40.8]}
10. b3 {[%clk 0:02:57.5]} 10... b5 {[%clk 0:02:23.3]} 11. cxb5 {[%clk
0:02:57.2]} 11... axb5 {[%clk 0:02:24.2]} 12. dxc5 {[%clk 0:02:57.7]} 12... dxc5
{[%clk 0:02:16.9]} 13. Bb2 {[%clk 0:02:55.6]} 13... Qa5 {[%clk 0:02:14]} 14. Nd5
{[%clk 0:02:48.6]} 14... Rd8 {[%clk 0:01:56.7]} 15. Bc3 {[%clk 0:02:34.1]} 15...
b4 {[%clk 0:01:33.7]} 16. Bxf6 {[%clk 0:02:32.6]} 16... exf6 {[%clk 0:01:33.8]}
17. Nd2 {[%clk 0:02:30.3]} 17... f5 {[%clk 0:01:29.1]} 18. Nc4 {[%clk
0:02:26.3]} 18... Qa7 {[%clk 0:01:27.9]} 19. Qc2 {[%clk 0:02:07.9]} 19... Bxa1
{[%clk 0:01:13.4]} 20. Rxa1 {[%clk 0:02:08.8]} 20... Be6 {[%clk 0:01:12.9]} 21.
Nf6+ {[%clk 0:02:03.5]} 21... Kg7 {[%clk 0:01:13.3]} 22. Qb2 {[%clk 0:01:53.6]}
22... Nd4 {[%clk 0:01:11.7]} 23. exd4 {[%clk 0:01:50.4]} 23... cxd4 {[%clk
0:01:09.8]} 24. Ne5 {[%clk 0:01:26.8]} 24... Kxf6 {[%clk 0:00:29]} 25. Nc6
{[%clk 0:01:26.8]} 25... Qc5 {[%clk 0:00:28.8]} 26. Rc1 {[%clk 0:01:25.7]} 26...
Qd6 {[%clk 0:00:25.6]} 27. Rd1 {[%clk 0:01:23.8]} 27... Qc5 {[%clk 0:00:20.3]}
28. Nxb8 {[%clk 0:01:03.7]} 28... Qc3 {[%clk 0:00:20]} 29. Qd2 {[%clk
0:00:58.6]} 29... Qxd2 {[%clk 0:00:11.7]} 30. Rxd2 {[%clk 0:00:59.5]} 30... Rxb8
{[%clk 0:00:11.7]} 31. Rxd4 {[%clk 0:00:59.9]} 31... Ke5 {[%clk 0:00:12.1]} 32.
Rd2 {[%clk 0:01:00.5]} 32... g5 {[%clk 0:00:11.3]} 33. h4 {[%clk 0:00:53.5]}
33... h6 {[%clk 0:00:10.3]} 34. hxg5 {[%clk 0:00:52.7]} 34... hxg5 {[%clk
0:00:11.2]} 35. Kf1 {[%clk 0:00:49.2]} 35... Rb6 {[%clk 0:00:11.2]} 36. Ke2
{[%clk 0:00:46.6]} 36... f4 {[%clk 0:00:11.7]} 37. gxf4+ {[%clk 0:00:43.9]}
37... Kxf4 {[%clk 0:00:12.1]} 38. Rd4+ {[%clk 0:00:43.2]} 38... Ke5 {[%clk
0:00:12.5]} 39. Ke3 {[%clk 0:00:42]} 39... f5 {[%clk 0:00:11.5]} 40. f4+ {[%clk
0:00:39.2]} 40... gxf4+ {[%clk 0:00:12.4]} 41. Rxf4 {[%clk 0:00:39.6]} 41... Ra6
{[%clk 0:00:09.6]} 42. Rxb4 {[%clk 0:00:36.8]} 42... Rxa2 {[%clk 0:00:09.9]} 43.
Rb5+ {[%clk 0:00:37.1]} 43... Kf6 {[%clk 0:00:10]} 44. Bf3 {[%clk 0:00:36.3]}
44... Rb2 {[%clk 0:00:09.7]} 45. Bd1 {[%clk 0:00:35.1]} 45... Kg5 {[%clk
0:00:08.3]} 46. Rb6 {[%clk 0:00:24.9]} 46... Bf7 {[%clk 0:00:07.9]} 47. Rb5
{[%clk 0:00:22.8]} 47... Be8 {[%clk 0:00:07.3]} 48. Re5 {[%clk 0:00:21.6]} 48...
Bg6 {[%clk 0:00:06.9]} 49. Rb5 {[%clk 0:00:20.7]} 49... Bf7 {[%clk 0:00:05.2]}
50. Ra5 {[%clk 0:00:16.5]} 50... Rh2 {[%clk 0:00:03.7]} 51. b4 {[%clk
0:00:15.7]} 51... Rb2 {[%clk 0:00:03.4]} 52. b5 {[%clk 0:00:11.9]} 52... Bc4
{[%clk 0:00:03.5]} 53. b6 {[%clk 0:00:08.8]} 53... Rxb6 {[%clk 0:00:03]} 54. Bc2
{[%clk 0:00:09.3]} 54... Be6 {[%clk 0:00:03.1]} 55. Rc5 {[%clk 0:00:08.9]} 55...
Bd7 {[%clk 0:00:03.2]} 56. Bd3 {[%clk 0:00:09]} 56... Rb3 {[%clk 0:00:02.7]} 57.
Kd2 {[%clk 0:00:08.7]} 57... Rb2+ {[%clk 0:00:02.8]} 58. Ke3 {[%clk 0:00:09.1]}
58... Ra2 {[%clk 0:00:02.9]} 59. Be2 {[%clk 0:00:08.9]} 59... Ra3+ {[%clk
0:00:03.1]} 60. Kf2 {[%clk 0:00:09.1]} 60... Be6 {[%clk 0:00:03.7]} 61. Bf3
{[%clk 0:00:09]} 61... Kf4 {[%clk 0:00:03.8]} 62. Bd5 {[%clk 0:00:08]} 62... Bd7
{[%clk 0:00:01.9]} 63. Rc4+ {[%clk 0:00:07.8]} 63... Ke5 {[%clk 0:00:02.4]} 64.
Bf3 {[%clk 0:00:07.4]} 64... Be6 {[%clk 0:00:02.8]} 65. Rb4 {[%clk 0:00:07.4]}
65... Rc3 {[%clk 0:00:02.4]} 66. Rb5+ {[%clk 0:00:07.8]} 66... Kf4 {[%clk
0:00:02.3]} 67. Rb4+ {[%clk 0:00:08.2]} 67... Kg5 {[%clk 0:00:02.7]} 68. Rb5
{[%clk 0:00:08.9]} 68... Bc4 {[%clk 0:00:02.7]} 69. Rc5 {[%clk 0:00:08.3]} 69...
Rc2+ {[%clk 0:00:03.1]} 70. Ke3 {[%clk 0:00:08.2]} 70... Rc3+ {[%clk 0:00:03.5]}
71. Kf2 {[%clk 0:00:07.9]} 71... Rc2+ {[%clk 0:00:02.4]} 72. Ke3 {[%clk
0:00:08.4]} 72... Rc3+ {[%clk 0:00:02.9]} 73. Kf2 {[%clk 0:00:08.8]} 1/2-1/2

[Event "Early-Titled-Tuesday-Blitz-October-10-2023"]
[Site "Chess.com"]
[Date "2023.10.10"]
[Round "8"]
[White "Cheer_Down"]
[Black "esrosenberg"]
[Result "0-1"]
[WhiteElo "2489"]
[BlackElo "2390"]
[TimeControl "180+1"]
[EndTime "9:28:34 PDT"]
[Termination "esrosenberg won by resignation"]

1. e4 {[%clk 0:03:00.9]} 1... e5 {[%clk 0:02:59.7]} 2. Nf3 {[%clk 0:03:00.3]}
2... Nc6 {[%clk 0:02:57.9]} 3. Bc4 {[%clk 0:02:59.2]} 3... Nf6 {[%clk
0:02:58.5]} 4. d3 {[%clk 0:02:59]} 4... h6 {[%clk 0:02:58.5]} 5. O-O {[%clk
0:02:56.1]} 5... d6 {[%clk 0:02:58]} 6. c3 {[%clk 0:02:54.4]} 6... g5 {[%clk
0:02:57.5]} 7. Nbd2 {[%clk 0:02:43.8]} 7... Bg7 {[%clk 0:02:57]} 8. Bb3 {[%clk
0:02:44]} 8... O-O {[%clk 0:02:56.7]} 9. h3 {[%clk 0:02:43.7]} 9... d5 {[%clk
0:02:55.2]} 10. Re1 {[%clk 0:02:42.9]} 10... dxe4 {[%clk 0:02:53.1]} 11. dxe4
{[%clk 0:02:20.6]} 11... a5 {[%clk 0:02:49.4]} 12. a4 {[%clk 0:02:19]} 12... Re8
{[%clk 0:02:46.6]} 13. Qc2 {[%clk 0:02:18.6]} 13... Be6 {[%clk 0:02:45]} 14. Nf1
{[%clk 0:02:18.1]} 14... Nd7 {[%clk 0:02:41.2]} 15. Be3 {[%clk 0:02:15.3]} 15...
Qe7 {[%clk 0:02:39.5]} 16. Bxe6 {[%clk 0:02:05]} 16... fxe6 {[%clk 0:02:37.5]}
17. Qb3 {[%clk 0:01:59.4]} 17... Rab8 {[%clk 0:02:33]} 18. Rad1 {[%clk
0:01:56.1]} 18... Kh7 {[%clk 0:02:32.2]} 19. Qc4 {[%clk 0:01:51.3]} 19... Rf8
{[%clk 0:02:31.4]} 20. Rd2 {[%clk 0:01:44.6]} 20... Rf7 {[%clk 0:02:31]} 21.
Red1 {[%clk 0:01:44]} 21... Nb6 {[%clk 0:02:28.8]} 22. Bxb6 {[%clk 0:01:40.9]}
22... cxb6 {[%clk 0:02:29]} 23. Qb5 {[%clk 0:01:36.7]} 23... Qc7 {[%clk
0:02:26.2]} 24. Ne3 {[%clk 0:01:32.7]} 24... Rbf8 {[%clk 0:02:25.5]} 25. Nc4
{[%clk 0:01:28.9]} 25... Rf4 {[%clk 0:02:11]} 26. Qxb6 {[%clk 0:01:21.4]} 26...
Qxb6 {[%clk 0:02:07.5]} 27. Nxb6 {[%clk 0:01:21.3]} 27... Rxe4 {[%clk
0:02:08.2]} 28. Rd7 {[%clk 0:01:20.8]} 28... Re2 {[%clk 0:02:03.5]} 29. Nc4
{[%clk 0:01:18.2]} 29... e4 {[%clk 0:02:00.9]} 30. Rxb7 {[%clk 0:00:47.8]} 30...
exf3 {[%clk 0:01:57.9]} 31. Rdd7 {[%clk 0:00:47.4]} 31... Rg8 {[%clk 0:01:50.8]}
32. gxf3 {[%clk 0:00:42]} 32... Ne5 {[%clk 0:01:50.6]} 33. Nxe5 {[%clk
0:00:39.8]} 33... Rxe5 {[%clk 0:01:51.5]} 34. Rb5 {[%clk 0:00:40.1]} 34... Rf5
{[%clk 0:01:47.5]} 35. Kg2 {[%clk 0:00:35.8]} 35... Kg6 {[%clk 0:01:43.2]} 36.
Rb6 {[%clk 0:00:33]} 36... Rf6 {[%clk 0:01:28.7]} 37. Rdd6 {[%clk 0:00:32]}
37... Re8 {[%clk 0:01:26.7]} 38. b4 {[%clk 0:00:30.6]} 38... Bf8 {[%clk
0:01:24]} 39. Rdc6 {[%clk 0:00:30.4]} 39... axb4 {[%clk 0:01:23.7]} 40. cxb4
{[%clk 0:00:30.8]} 40... Rf4 {[%clk 0:01:18.1]} 41. Rxe6+ {[%clk 0:00:24.6]}
41... Rxe6 {[%clk 0:01:18.3]} 42. Rxe6+ {[%clk 0:00:25.3]} 42... Kf7 {[%clk
0:01:18.9]} 43. Ra6 {[%clk 0:00:13.2]} 43... Rxb4 {[%clk 0:01:17.9]} 44. a5
{[%clk 0:00:13.6]} 44... Ra4 {[%clk 0:01:18.5]} 45. Ra7+ {[%clk 0:00:13.8]}
45... Kg6 {[%clk 0:01:13.9]} 46. a6 {[%clk 0:00:14.7]} 46... Bc5 {[%clk
0:01:11.3]} 47. Rc7 {[%clk 0:00:14.2]} 47... Bd4 {[%clk 0:01:11.3]} 48. Rc6+
{[%clk 0:00:14]} 48... Kh5 {[%clk 0:01:11.4]} 49. Rd6 {[%clk 0:00:13]} 49... Be5
{[%clk 0:01:09.8]} 50. Re6 {[%clk 0:00:12.8]} 50... Bf4 {[%clk 0:01:10]} 51. Rc6
{[%clk 0:00:11.3]} 51... Ra2 {[%clk 0:01:09.6]} 52. Re6 {[%clk 0:00:11]} 52...
Bb8 {[%clk 0:01:01.9]} 53. f4 {[%clk 0:00:07.4]} 53... Bxf4 {[%clk 0:01:01.2]}
54. Kf3 {[%clk 0:00:07.2]} 54... Bb8 {[%clk 0:00:58.3]} 55. Rf6 {[%clk
0:00:06.1]} 55... Ba7 {[%clk 0:00:57.2]} 56. Kg3 {[%clk 0:00:06.4]} 56... Bb8+
{[%clk 0:00:32.5]} 57. Kg2 {[%clk 0:00:06.5]} 57... Be5 {[%clk 0:00:32.1]} 58.
Re6 {[%clk 0:00:06.7]} 58... Bd4 {[%clk 0:00:31.9]} 59. Rd6 {[%clk 0:00:06.5]}
59... Bxf2 {[%clk 0:00:32.1]} 60. Kf3 {[%clk 0:00:03.8]} 60... Bc5 {[%clk
0:00:30.6]} 61. Rc6 {[%clk 0:00:03.8]} 61... Ba7 {[%clk 0:00:29.7]} 62. Ke4
{[%clk 0:00:04]} 62... Ra4+ {[%clk 0:00:22.7]} 63. Kd5 {[%clk 0:00:03.8]} 63...
Ra3 {[%clk 0:00:18.3]} 64. Kc4 {[%clk 0:00:03]} 64... Rxh3 {[%clk 0:00:17.6]}
65. Rc7 {[%clk 0:00:02.8]} 65... Bg1 {[%clk 0:00:17]} 66. a7 {[%clk 0:00:02.6]}
66... Bxa7 {[%clk 0:00:17.7]} 67. Rxa7 {[%clk 0:00:02.2]} 67... Re3 {[%clk
0:00:18]} 68. Kd4 {[%clk 0:00:03.1]} 68... Re1 {[%clk 0:00:18.2]} 69. Kd3 {[%clk
0:00:03.2]} 69... g4 {[%clk 0:00:18.2]} 70. Kd2 {[%clk 0:00:04.1]} 70... Re8
{[%clk 0:00:18.1]} 71. Ra1 {[%clk 0:00:04.5]} 71... Kg5 {[%clk 0:00:16.9]} 72.
Rh1 {[%clk 0:00:05.4]} 72... h5 {[%clk 0:00:17.1]} 73. Ra1 {[%clk 0:00:05.9]}
73... g3 {[%clk 0:00:16.4]} 74. Ra5+ {[%clk 0:00:06.8]} 74... Kg4 {[%clk
0:00:17]} 0-1

[Event "Early-Titled-Tuesday-Blitz-October-10-2023"]
[Site "Chess.com"]
[Date "2023.10.10"]
[Round "8"]
[White "dropstoneDP"]
[Black "MagnusCarlsen"]
[Result "1-0"]
[WhiteElo "3087"]
[BlackElo "3277"]
[TimeControl "180+1"]
[EndTime "9:28:38 PDT"]
[Termination "dropstoneDP won by resignation"]

1. e4 {[%clk 0:03:00.9]} 1... a6 {[%clk 0:02:58.7]} 2. d4 {[%clk 0:03:00.6]}
2... e6 {[%clk 0:02:58.8]} 3. Be3 {[%clk 0:03:01]} 3... Nf6 {[%clk 0:02:56]} 4.
Nd2 {[%clk 0:03:01.1]} 4... b6 {[%clk 0:02:53.7]} 5. Bd3 {[%clk 0:02:58.9]} 5...
Bb7 {[%clk 0:02:54.1]} 6. h3 {[%clk 0:02:57.1]} 6... d6 {[%clk 0:02:52.4]} 7.
Ne2 {[%clk 0:02:57.1]} 7... Nbd7 {[%clk 0:02:53]} 8. c3 {[%clk 0:02:56.9]} 8...
Be7 {[%clk 0:02:52.5]} 9. Ng3 {[%clk 0:02:56.5]} 9... O-O {[%clk 0:02:52.4]} 10.
Nf3 {[%clk 0:02:56.6]} 10... Re8 {[%clk 0:02:47.8]} 11. O-O {[%clk 0:02:54.5]}
11... e5 {[%clk 0:02:47.2]} 12. Re1 {[%clk 0:02:53.9]} 12... Bf8 {[%clk
0:02:47.2]} 13. d5 {[%clk 0:02:52.2]} 13... b5 {[%clk 0:02:44.1]} 14. b3 {[%clk
0:02:46.3]} 14... c6 {[%clk 0:02:44.1]} 15. c4 {[%clk 0:02:45.7]} 15... Qc7
{[%clk 0:02:44.4]} 16. Rc1 {[%clk 0:02:44.7]} 16... bxc4 {[%clk 0:02:43.9]} 17.
Bxc4 {[%clk 0:02:28.3]} 17... c5 {[%clk 0:02:34.8]} 18. Nd2 {[%clk 0:02:18.8]}
18... a5 {[%clk 0:02:34.6]} 19. Bb5 {[%clk 0:02:18.4]} 19... Ba6 {[%clk
0:02:34.3]} 20. Bxa6 {[%clk 0:02:00]} 20... Rxa6 {[%clk 0:02:34.3]} 21. a4
{[%clk 0:02:00.9]} 21... Rb8 {[%clk 0:02:33.2]} 22. Ne2 {[%clk 0:02:01.3]} 22...
Qb7 {[%clk 0:02:30.6]} 23. Nc3 {[%clk 0:01:59.5]} 23... Ne8 {[%clk 0:02:31.1]}
24. Nb5 {[%clk 0:01:46.4]} 24... Nc7 {[%clk 0:02:29.6]} 25. Na3 {[%clk
0:01:29.2]} 25... Be7 {[%clk 0:02:20.6]} 26. Rb1 {[%clk 0:01:26]} 26... Raa8
{[%clk 0:02:17.9]} 27. Ndc4 {[%clk 0:01:24.4]} 27... Qa6 {[%clk 0:02:15.6]} 28.
f4 {[%clk 0:01:21.3]} 28... Bf6 {[%clk 0:02:04]} 29. Kh1 {[%clk 0:01:20.5]}
29... Rb4 {[%clk 0:02:01.9]} 30. Bd2 {[%clk 0:01:16.6]} 30... exf4 {[%clk
0:01:55.2]} 31. Bxf4 {[%clk 0:01:17.5]} 31... Ne8 {[%clk 0:01:45.9]} 32. Nb5
{[%clk 0:01:17]} 32... Ne5 {[%clk 0:01:46.1]} 33. Bxe5 {[%clk 0:01:16.5]} 33...
Bxe5 {[%clk 0:01:47]} 34. Nxe5 {[%clk 0:01:15]} 34... dxe5 {[%clk 0:01:47.9]}
35. d6 {[%clk 0:01:06.2]} 35... Rd8 {[%clk 0:01:42.9]} 36. Qd5 {[%clk
0:01:05.8]} 36... Nf6 {[%clk 0:01:19.4]} 37. Qxe5 {[%clk 0:01:04.1]} 37... Qc6
{[%clk 0:01:20]} 38. Rbd1 {[%clk 0:00:24.6]} 38... h6 {[%clk 0:01:18.5]} 39. Nc3
{[%clk 0:00:15.2]} 39... Rd4 {[%clk 0:01:16.1]} 40. Nd5 {[%clk 0:00:10.6]} 40...
Nxd5 {[%clk 0:01:05.2]} 41. Rxd4 {[%clk 0:00:06.9]} 41... cxd4 {[%clk
0:01:06.1]} 42. exd5 {[%clk 0:00:04.5]} 42... Qxd6 {[%clk 0:00:46.7]} 43. Qxd4
{[%clk 0:00:04.5]} 43... Rb8 {[%clk 0:00:46.5]} 44. Re3 {[%clk 0:00:02.4]} 44...
Rc8 {[%clk 0:00:45.3]} 45. Qe5 {[%clk 0:00:01.8]} 45... Rd8 {[%clk 0:00:25]} 46.
Qxd6 {[%clk 0:00:02]} 46... Rxd6 {[%clk 0:00:25.9]} 47. Rd3 {[%clk 0:00:02.4]}
47... Kf8 {[%clk 0:00:26.5]} 48. Kg1 {[%clk 0:00:03]} 48... Ke7 {[%clk
0:00:27.2]} 49. Kf2 {[%clk 0:00:03.7]} 49... Rb6 {[%clk 0:00:27.9]} 50. Ke3
{[%clk 0:00:01.4]} 50... Kd6 {[%clk 0:00:28.4]} 51. Kd4 {[%clk 0:00:01.9]} 51...
g5 {[%clk 0:00:20.7]} 52. Kc3 {[%clk 0:00:02.1]} 52... f5 {[%clk 0:00:19.8]} 53.
Rd4 {[%clk 0:00:02.3]} 53... Kc5 {[%clk 0:00:11]} 54. d6 {[%clk 0:00:02.9]}
54... Rxd6 {[%clk 0:00:11.2]} 55. Rxd6 {[%clk 0:00:03.1]} 55... Kxd6 {[%clk
0:00:12.1]} 56. b4 {[%clk 0:00:04]} 56... axb4+ {[%clk 0:00:13]} 57. Kxb4 {[%clk
0:00:04.9]} 57... f4 {[%clk 0:00:12.6]} 58. Kc4 {[%clk 0:00:04.5]} 58... h5
{[%clk 0:00:11.7]} 59. Kd4 {[%clk 0:00:03.2]} 59... g4 {[%clk 0:00:11.8]} 60. h4
{[%clk 0:00:02.5]} 60... f3 {[%clk 0:00:08.2]} 61. gxf3 {[%clk 0:00:03.4]} 61...
gxf3 {[%clk 0:00:09.1]} 62. Ke3 {[%clk 0:00:03.8]} 62... Kc5 {[%clk 0:00:10]}
63. Kxf3 {[%clk 0:00:04.3]} 63... Kb4 {[%clk 0:00:10.9]} 64. Kf4 {[%clk
0:00:05]} 64... Kxa4 {[%clk 0:00:11.8]} 65. Kg5 {[%clk 0:00:05.9]} 65... Kb5
{[%clk 0:00:12.7]} 66. Kxh5 {[%clk 0:00:06.8]} 66... Kc6 {[%clk 0:00:13.6]} 67.
Kg6 {[%clk 0:00:07.7]} 67... Kd7 {[%clk 0:00:14.5]} 68. Kf7 {[%clk 0:00:08.3]}
1-0

[Event "Early-Titled-Tuesday-Blitz-October-10-2023"]
[Site "Chess.com"]
[Date "2023.10.10"]
[Round "8"]
[White "xamax2000"]
[Black "Iball95"]
[Result "0-1"]
[WhiteElo "2864"]
[BlackElo "2822"]
[TimeControl "180+1"]
[EndTime "9:28:42 PDT"]
[Termination "Iball95 won by resignation"]

1. Nf3 {[%clk 0:03:00.9]} 1... d5 {[%clk 0:03:00]} 2. g3 {[%clk 0:03:01.8]} 2...
Nf6 {[%clk 0:02:59.7]} 3. Bg2 {[%clk 0:03:02.4]} 3... c5 {[%clk 0:03:00.3]} 4.
O-O {[%clk 0:03:02]} 4... Nc6 {[%clk 0:03:01.2]} 5. d3 {[%clk 0:03:02]} 5... g6
{[%clk 0:03:00.8]} 6. Nbd2 {[%clk 0:03:01.8]} 6... Bg7 {[%clk 0:03:01.5]} 7. e4
{[%clk 0:03:02.5]} 7... O-O {[%clk 0:03:02.3]} 8. h3 {[%clk 0:02:58.8]} 8... e6
{[%clk 0:02:56.5]} 9. Re1 {[%clk 0:02:55.3]} 9... b6 {[%clk 0:02:50.5]} 10. exd5
{[%clk 0:02:47.7]} 10... exd5 {[%clk 0:02:51.4]} 11. d4 {[%clk 0:02:42.9]} 11...
Bb7 {[%clk 0:02:25.5]} 12. b3 {[%clk 0:02:22]} 12... Ne4 {[%clk 0:02:03.3]} 13.
Bb2 {[%clk 0:02:15.8]} 13... Re8 {[%clk 0:01:57.6]} 14. c3 {[%clk 0:01:49.6]}
14... Rc8 {[%clk 0:01:54.5]} 15. Rc1 {[%clk 0:01:47.3]} 15... cxd4 {[%clk
0:01:45.3]} 16. cxd4 {[%clk 0:01:40.5]} 16... Nb4 {[%clk 0:01:45.5]} 17. Rxc8
{[%clk 0:01:14.3]} 17... Qxc8 {[%clk 0:01:46.4]} 18. Ne5 {[%clk 0:00:47.1]}
18... Bxe5 {[%clk 0:01:45]} 19. dxe5 {[%clk 0:00:44.1]} 19... Nd3 {[%clk
0:01:42.1]} 20. Nxe4 {[%clk 0:00:42.9]} 20... dxe4 {[%clk 0:01:41.1]} 21. Re2
{[%clk 0:00:43.4]} 21... Nxb2 {[%clk 0:01:38.1]} 22. Rxb2 {[%clk 0:00:40.1]}
22... Rxe5 {[%clk 0:01:38.7]} 23. Rd2 {[%clk 0:00:36.9]} 23... Qc5 {[%clk
0:01:24.7]} 24. Rd8+ {[%clk 0:00:26.2]} 24... Kg7 {[%clk 0:01:24.8]} 25. Rd7
{[%clk 0:00:27.1]} 25... Re7 {[%clk 0:01:07.8]} 26. Qa1+ {[%clk 0:00:22.8]}
26... f6 {[%clk 0:01:07.8]} 27. Qd1 {[%clk 0:00:20]} 27... Bc6 {[%clk
0:00:54.1]} 28. Rxe7+ {[%clk 0:00:16.9]} 28... Qxe7 {[%clk 0:00:55]} 29. Qd4
{[%clk 0:00:16.8]} 29... Bb7 {[%clk 0:00:55.5]} 30. h4 {[%clk 0:00:16.5]} 30...
Kf7 {[%clk 0:00:55.4]} 31. Qc4+ {[%clk 0:00:16.3]} 31... Qe6 {[%clk 0:00:54.6]}
32. Qc7+ {[%clk 0:00:16.3]} 32... Qe7 {[%clk 0:00:55]} 33. Qc4+ {[%clk
0:00:16.6]} 33... Kg7 {[%clk 0:00:55.9]} 34. Qd4 {[%clk 0:00:17.1]} 34... Kf8
{[%clk 0:00:42.2]} 35. b4 {[%clk 0:00:17.3]} 35... Ke8 {[%clk 0:00:35.6]} 36. a3
{[%clk 0:00:17.1]} 36... Kf7 {[%clk 0:00:33.4]} 37. Qc4+ {[%clk 0:00:17.1]}
37... Kg7 {[%clk 0:00:33]} 38. Qd4 {[%clk 0:00:17]} 38... Kg8 {[%clk 0:00:27.8]}
39. Kf1 {[%clk 0:00:17.2]} 39... f5 {[%clk 0:00:28.1]} 40. Ke1 {[%clk
0:00:16.3]} 40... Bc8 {[%clk 0:00:28.5]} 41. Bf1 {[%clk 0:00:16.4]} 41... Be6
{[%clk 0:00:29.2]} 42. Bb5 {[%clk 0:00:12.8]} 42... Bf7 {[%clk 0:00:29.4]} 43.
Ke2 {[%clk 0:00:12.2]} 43... Qc7 {[%clk 0:00:28.8]} 44. Kd2 {[%clk 0:00:10]}
44... a5 {[%clk 0:00:25]} 45. Be2 {[%clk 0:00:09.3]} 45... axb4 {[%clk
0:00:25.4]} 46. axb4 {[%clk 0:00:10.2]} 46... h5 {[%clk 0:00:24]} 47. Bd1 {[%clk
0:00:09.6]} 47... Kh7 {[%clk 0:00:24.9]} 48. Be2 {[%clk 0:00:09.9]} 48... Bg8
{[%clk 0:00:24.6]} 49. Bd1 {[%clk 0:00:09.6]} 49... Bc4 {[%clk 0:00:25.1]} 50.
Ke3 {[%clk 0:00:09.2]} 50... Bf7 {[%clk 0:00:24.2]} 51. Kd2 {[%clk 0:00:04.5]}
51... Qa7 {[%clk 0:00:24.7]} 52. Ke3 {[%clk 0:00:04.6]} 52... Qa3+ {[%clk
0:00:24.5]} 53. Kf4 {[%clk 0:00:04.6]} 53... Qa7 {[%clk 0:00:24.1]} 54. Qd6
{[%clk 0:00:02.8]} 54... b5 {[%clk 0:00:22]} 55. Kg5 {[%clk 0:00:03]} 55... Qxf2
{[%clk 0:00:16.3]} 56. Kf6 {[%clk 0:00:03.6]} 56... Qa7 {[%clk 0:00:16.2]} 57.
Qf8 {[%clk 0:00:02.6]} 57... Bc4 {[%clk 0:00:16.2]} 58. Bxh5 {[%clk 0:00:02.1]}
58... gxh5 {[%clk 0:00:14]} 59. Kg5 {[%clk 0:00:02.5]} 59... Qf7 {[%clk
0:00:12.4]} 60. Qh6+ {[%clk 0:00:02.1]} 60... Kg8 {[%clk 0:00:13.1]} 61. Qb6
{[%clk 0:00:03]} 61... Qe7+ {[%clk 0:00:12.7]} 62. Kxh5 {[%clk 0:00:03.1]} 62...
Bf7+ {[%clk 0:00:13.1]} 63. Kh6 {[%clk 0:00:03.6]} 63... Qe6+ {[%clk 0:00:13.8]}
64. Qxe6 {[%clk 0:00:02.7]} 64... Bxe6 {[%clk 0:00:14.7]} 65. Kg5 {[%clk
0:00:03.6]} 65... e3 {[%clk 0:00:15.6]} 0-1